fUSD/lending_fUSD_20241208
["ID","MTS","AMOUNT","RATE_DAILY","PERIOD"]
[344622555,1733627446615,-463.49596685,0.0002409,3]
[344622556,1733627446626,-324.95834368,0.0002409,3]
[344622557,1733627446638,-602.0,0.0002409,3]
[344622558,1733627446649,-479.97517765,0.0002409,3]
[344622559,1733627446659,-7056.92843236,0.0002409,3]
[344622560,1733627446672,-1303.17693193,0.0002409,3]
[344622561,1733627446682,-8987.6809423,0.0002409,3]
[344622562,1733627446694,-1644.15644672,0.0002409,3]
[344622563,1733627446704,-10458.45496842,0.0002409,3]
[344622564,1733627446715,-1865.90015416,0.0002409,3]
[344622565,1733627446726,-392.19904231,0.0002409,3]
[344622566,1733627446737,-765.72777458,0.0002409,3]
[344622567,1733627446839,-5926.27291896,0.0002409,3]
[344622568,1733627446850,-3013.95696632,0.0002409,3]
[344622569,1733627446861,-2049.27708235,0.0002409,3]
[344622570,1733627446875,-500.0,0.0002409,3]
[344622571,1733627446886,-39516.72389401,0.0002409,3]
[344622574,1733628354685,12361.22819118,6.94e-05,2]
[344622579,1733628631670,-450.0,0.00013,2]
[344622580,1733628631680,-16729.88909929,0.000147,2]
[344622587,1733628631811,-2209.88196035,0.000147,2]
[344622588,1733628631822,-7815.06798655,0.000147,2]
[344622589,1733628631833,-3675.62965262,0.000147,2]
[344622590,1733628631843,-456.1852414,0.0001489,2]
[344622591,1733628631852,-456.18524138,0.00014895,2]
[344622592,1733628631863,-456.18524138,0.000149,2]
[344622593,1733628631874,-581.43,0.0001498,2]
[344622594,1733628631884,-581.43,0.0001498,2]
[344622595,1733628631893,-581.43,0.0001498,2]
[344622596,1733628631902,-8882.90062322,0.0001499,2]
[344622597,1733628631960,-475.22000005,0.0001499,2]
[344622600,1733628631971,-740.34872213,0.0001499,2]
[344622602,1733628631987,-4784.43499793,0.0001499,2]
[344622617,1733628637742,-333.37312191,0.0001499,2]
[344622618,1733628637890,-1192.7749298,0.0001499,2]
[344622619,1733628637905,-684.3000014,0.0001499,2]
[344622620,1733628637917,-97572.89932659,0.0001499,2]
[344622621,1733628637928,-393.01182328,0.0001499,2]
[344622622,1733628637939,-1589.07529685,0.0001499,2]
[344622623,1733628638033,-97645.65951686,0.0001499,2]
[344622624,1733628638042,-500.0,0.00015,2]
[344622625,1733628638052,-151.51,0.00015032,2]
[344622626,1733628638061,-262.96,0.0001681,2]
[344622627,1733628638070,-550.0,0.00017,2]
[344622628,1733628638080,-200.0,0.00018629,2]
[344622629,1733628638090,-250.0,0.00018679,2]
[344622630,1733628638099,-160.0,0.00018868,2]
[344622631,1733628638108,-2978.88,0.00018913,2]
[344622632,1733628638120,-600.0,0.00019,2]
[344622633,1733628638129,-5073.42489508,0.00019,2]
[344622634,1733628638138,-941.91,0.00019046,30]
[344622635,1733628638147,-262.96,0.00019074,2]
[344622636,1733628638156,-327.12,0.00019084,2]
[344622637,1733628638166,-290.9,0.000191,2]
[344622638,1733628638175,-174.9,0.00019203,2]
[344622639,1733628638185,-500.09,0.00019542,2]
[344622640,1733628638194,-581.43,0.0001959,2]
[344622641,1733628638203,-20967.32269176,0.000196,2]
[344622643,1733628638213,-4999.999999,0.0001961,2]
[344622644,1733628638222,-500.0,0.00019726,2]
[344622645,1733628638231,-569.02,0.00019726,2]
[344622646,1733628638241,-7307.73,0.00019726,2]
[344622647,1733628638250,-500.0,0.00019726,2]
[344622648,1733628638259,-295.11359744,0.000199,2]
[344622649,1733628638268,-581.43,0.00019952,2]
[344622650,1733628638277,-496.0,0.00019973,2]
[344622651,1733628638287,-797.0,0.00019973,2]
[344622652,1733628638296,-500.0,0.00019973,2]
[344622653,1733628638305,-500.0,0.00019973,2]
[344622654,1733628638314,-500.0,0.00019973,2]
[344622655,1733628638323,-500.0,0.00019973,2]
[344622656,1733628638332,-500.0,0.00019973,2]
[344622657,1733628638342,-581.43,0.00019987,2]
[344622658,1733628638351,-581.43,0.00019987,2]
[344622659,1733628638360,-581.43,0.00019987,2]
[344622660,1733628638371,-581.43,0.00019987,2]
[344622661,1733628638380,-581.43,0.00019987,2]
[344622662,1733628638389,-151.58,0.00019988,2]
[344622663,1733628638398,-151.58,0.00019988,2]
[344622664,1733628638407,-151.58,0.00019988,2]
[344622665,1733628638416,-151.58,0.00019988,2]
[344622666,1733628638426,-151.58,0.00019988,2]
[344622667,1733628638435,-151.58,0.00019988,2]
[344622668,1733628638444,-151.58,0.00019988,2]
[344622669,1733628638454,-151.58,0.00019988,2]
[344622670,1733628638463,-151.58,0.00019988,2]
[344622671,1733628638472,-151.58,0.00019988,2]
[344622672,1733628638481,-151.58,0.00019988,2]
[344622673,1733628638490,-151.58,0.00019988,2]
[344622674,1733628638500,-151.58,0.00019988,2]
[344622675,1733628638509,-151.58,0.00019988,2]
[344622676,1733628638518,-151.58,0.00019988,2]
[344622677,1733628638527,-151.58,0.00019988,2]
[344622678,1733628638536,-151.58,0.00019988,2]
[344622679,1733628638546,-151.58,0.00019988,2]
[344622680,1733628638555,-151.58,0.00019988,2]
[344622681,1733628638565,-151.58,0.00019989,2]
[344622682,1733628638575,-151.58,0.00019989,2]
[344622683,1733628638584,-151.58,0.00019989,2]
[344622684,1733628638597,-151.58,0.00019989,2]
[344622685,1733628638607,-151.58,0.00019989,2]
[344622686,1733628638617,-151.58,0.00019989,2]
[344622687,1733628638627,-313.05285733,0.00019997,2]
[344622688,1733628638637,-1075.02639277,0.00019997,5]
[344622689,1733628638647,-1075.02639277,0.00019997,5]
[344622690,1733628638657,-500.0,0.00019997,2]
[344622691,1733628638667,-500.0,0.00019997,2]
[344622692,1733628638677,-500.0,0.00019997,2]
[344622693,1733628638686,-500.0,0.00019997,2]
[344622694,1733628638695,-500.0,0.00019997,2]
[344622695,1733628638705,-500.0,0.00019997,2]
[344622696,1733628638714,-500.0,0.00019997,2]
[344622697,1733628638723,-500.0,0.00019997,2]
[344622698,1733628638733,-500.0,0.00019997,2]
[344622699,1733628638743,-500.0,0.00019997,2]
[344622700,1733628638752,-556.66520787,0.00019997,2]
[344622701,1733628638761,-500.0,0.00019997,2]
[344622702,1733628638771,-500.0,0.00019997,2]
[344622703,1733628638780,-500.0,0.00019997,2]
[344622704,1733628638789,-500.0,0.00019997,2]
[344622705,1733628638798,-500.0,0.00019997,2]
[344622706,1733628638811,-624.62508947,0.00019997,2]
[344622707,1733628638820,-500.0,0.00019997,2]
[344622708,1733628638829,-500.0,0.00019997,2]
[344622709,1733628638839,-500.0,0.00019997,2]
[344622710,1733628638848,-500.0,0.00019997,2]
[344622711,1733628638857,-500.0,0.00019997,2]
[344622712,1733628638867,-500.0,0.00019997,2]
[344622713,1733628638876,-500.0,0.00019997,2]
[344622714,1733628638885,-500.0,0.00019997,2]
[344622715,1733628638894,-194.60100406,0.00019997,2]
[344622716,1733628638903,-500.0,0.00019997,2]
[344622717,1733628638912,-500.0,0.00019997,2]
[344622718,1733628638922,-500.0,0.00019997,2]
[344622719,1733628638931,-500.0,0.00019997,2]
[344622720,1733628638940,-500.0,0.00019997,2]
[344622721,1733628638949,-500.0,0.00019997,2]
[344622722,1733628638959,-500.0,0.00019997,2]
[344622723,1733628638968,-192.4197996,0.00019997,2]
[344622724,1733628638977,-3133.88,0.00019997,2]
[344622725,1733628638987,-3133.88,0.00019997,2]
[344622726,1733628638996,-3133.88,0.00019997,2]
[344622727,1733628639006,-3133.88,0.00019997,2]
[344622728,1733628639015,-3133.88,0.00019997,2]
[344622729,1733628639024,-500.0,0.00019997,2]
[344622730,1733628639033,-500.0,0.00019997,2]
[344622731,1733628639042,-500.0,0.00019997,2]
[344622732,1733628639052,-500.0,0.00019997,2]
[344622733,1733628639061,-500.0,0.00019997,2]
[344622734,1733628639070,-41179.42153584,0.00019997,5]
[344622735,1733628639081,-500.0,0.00019997,2]
[344622736,1733628639090,-503.70814381,0.00019997,2]
[344622737,1733628639099,-500.0,0.00019997,2]
[344622738,1733628639109,-500.0,0.00019997,2]
[344622739,1733628639119,-500.0,0.00019997,2]
[344622740,1733628639128,-500.0,0.00019997,2]
[344622741,1733628639138,-500.0,0.00019997,2]
[344622742,1733628639147,-500.0,0.00019997,2]
[344622743,1733628639157,-500.0,0.00019997,2]
[344622744,1733628639166,-500.0,0.00019997,2]
[344622745,1733628639176,-3815.53,0.00019997,2]
[344622746,1733628639185,-3815.53,0.00019997,2]
[344622747,1733628639194,-3815.53,0.00019997,2]
[344622748,1733628639203,-3815.53,0.00019997,2]
[344622749,1733628639212,-3815.53,0.00019997,2]
[344622750,1733628639222,-500.0,0.00019997,2]
[344622751,1733628639232,-500.0,0.00019997,2]
[344622752,1733628639241,-500.0,0.00019997,2]
[344622753,1733628639250,-619.56809418,0.00019997,2]
[344622754,1733628639260,-500.0,0.00019997,2]
[344622755,1733628639270,-576.18000821,0.00019997,2]
[344622756,1733628639279,-500.91376766,0.00019997,2]
[344622757,1733628639288,-500.0,0.00019997,2]
[344622758,1733628639297,-285.59055614,0.00019997,2]
[344622759,1733628639306,-500.0,0.00019997,2]
[344622760,1733628639316,-333.64354469,0.00019997,2]
[344622761,1733628639325,-500.0,0.00019997,2]
[344622762,1733628639334,-500.0,0.00019997,2]
[344622763,1733628639530,-500.0,0.00019997,2]
[344622764,1733628639540,-500.0,0.00019997,2]
[344622765,1733628639551,-500.0,0.00019997,2]
[344622766,1733628639562,-500.0,0.00019997,2]
[344622767,1733628639573,-500.0,0.00019997,2]
[344622768,1733628639583,-500.0,0.00019997,2]
[344622769,1733628639595,-500.0,0.00019997,2]
[344622770,1733628639605,-500.0,0.00019997,2]
[344622771,1733628639616,-500.0,0.00019997,2]
[344622772,1733628639627,-500.0,0.00019997,2]
[344622773,1733628639638,-500.0,0.00019997,2]
[344622774,1733628639648,-500.0,0.00019997,2]
[344622775,1733628639657,-500.0,0.00019997,2]
[344622776,1733628639667,-500.0,0.00019997,2]
[344622777,1733628639678,-500.0,0.00019997,2]
[344622778,1733628639688,-500.0,0.00019997,2]
[344622779,1733628639697,-500.0,0.00019997,2]
[344622780,1733628639707,-500.0,0.00019997,2]
[344622781,1733628639716,-500.0,0.00019997,2]
[344622782,1733628639726,-500.0,0.00019997,2]
[344622783,1733628639735,-500.0,0.00019997,2]
[344622784,1733628639745,-500.0,0.00019997,2]
[344622785,1733628639755,-500.0,0.00019997,2]
[344622786,1733628639765,-500.0,0.00019997,2]
[344622787,1733628639774,-512.69582053,0.00019997,2]
[344622788,1733628639784,-500.0,0.00019997,2]
[344622789,1733628639793,-500.0,0.00019997,2]
[344622790,1733628639803,-500.0,0.00019997,2]
[344622791,1733628639812,-500.0,0.00019997,2]
[344622792,1733628639822,-500.0,0.00019997,2]
[344622793,1733628639831,-500.0,0.00019997,2]
[344622794,1733628639841,-599.06169729,0.00019997,2]
[344622795,1733628639851,-500.0,0.00019997,2]
[344622796,1733628639861,-643.79928965,0.00019997,2]
[344622797,1733628639873,-500.0,0.00019997,2]
[344622798,1733628639883,-518.69,0.00019997,2]
[344622799,1733628639892,-500.0,0.00019997,2]
[344622800,1733628639902,-500.0,0.00019997,2]
[344622801,1733628639912,-500.0,0.00019997,2]
[344622802,1733628639921,-150.0,0.00019997,2]
[344622803,1733628639931,-500.0,0.00019997,2]
[344622804,1733628639940,-500.0,0.00019997,2]
[344622805,1733628639949,-500.0,0.00019997,2]
[344622806,1733628639959,-569.02,0.00019997,2]
[344622807,1733628639969,-569.02,0.00019997,2]
[344622808,1733628639978,-569.02,0.00019997,2]
[344622809,1733628639988,-569.02,0.00019997,2]
[344622810,1733628639998,-569.02,0.00019997,2]
[344622811,1733628640008,-7307.73,0.00019997,2]
[344622813,1733628640018,-7307.73,0.00019997,2]
[344622814,1733628640028,-7307.73,0.00019997,2]
[344622815,1733628640038,-7307.73,0.00019997,2]
[344622816,1733628640049,-7307.73,0.00019997,2]
[344622817,1733628640059,-298.63422844,0.00019997,2]
[344622818,1733628640068,-1250454.91561236,0.00019998,7]
[344622819,1733628640079,-500.0,0.00019998,2]
[344622820,1733628640088,-500.0,0.00019998,2]
[344622821,1733628640097,-511.91573185,0.00019998,2]
[344622822,1733628640107,-164.7562468,0.00019998,2]
[344622823,1733628640117,-518.58780452,0.00019998,2]
[344622824,1733628640127,-508.38625238,0.00019998,2]
[344622825,1733628640137,-505.5837027,0.00019998,2]
[344622826,1733628640147,-531.2833519,0.00019998,2]
[344622827,1733628640156,-521.83848089,0.00019998,2]
[344622828,1733628640166,-500.0,0.00019998,2]
[344622829,1733628640175,-509.33213679,0.00019998,2]
[344622830,1733628640186,-529.96366387,0.00019998,2]
[344622831,1733628640195,-512.16131661,0.00019998,2]
[344622832,1733628640206,-517.47986661,0.00019998,2]
[344622833,1733628640215,-549.82173893,0.00019998,2]
[344622834,1733628640226,-524.98274995,0.00019998,2]
[344622835,1733628640235,-515.65684292,0.00019998,2]
[344622836,1733628640245,-512.17151041,0.00019998,2]
[344622837,1733628640255,-500.0,0.00019998,2]
[344622838,1733628640264,-511.72057293,0.00019998,2]
[344622839,1733628640274,-500.0,0.00019998,2]
[344622840,1733628640283,-527.46076305,0.00019998,2]
[344622841,1733628640292,-510.17357907,0.00019998,2]
[344622842,1733628640302,-505.08131048,0.00019998,2]
[344622843,1733628640311,-513.22391244,0.00019998,2]
[344622844,1733628640321,-500.0,0.00019998,2]
[344622845,1733628640330,-500.0,0.00019998,2]
[344622846,1733628640340,-500.0,0.00019998,2]
[344622847,1733628640349,-500.0,0.00019998,2]
[344622848,1733628640358,-500.0,0.00019998,2]
[344622849,1733628640369,-500.0,0.00019998,2]
[344622850,1733628640379,-307.99824778,0.00019998,2]
[344622851,1733628640388,-523.36007084,0.00019998,2]
[344622852,1733628640398,-514.14953327,0.00019998,2]
[344622853,1733628640408,-575.20610138,0.00019998,2]
[344622854,1733628640417,-517.97397508,0.00019998,2]
[344622855,1733628640427,-500.0,0.00019998,2]
[344622856,1733628640436,-153.45391408,0.00019998,2]
[344622857,1733628640446,-500.0,0.00019998,2]
[344622858,1733628640456,-284.7549271,0.00019998,2]
[344622859,1733628640465,-500.0,0.00019998,2]
[344622860,1733628640474,-500.0,0.00019998,2]
[344622861,1733628640484,-500.0,0.00019998,2]
[344622862,1733628640493,-3133.88,0.00019998,2]
[344622863,1733628640503,-500.0,0.00019998,2]
[344622864,1733628640512,-500.0,0.00019998,2]
[344622865,1733628640522,-500.0,0.00019998,2]
[344622866,1733628640531,-500.0,0.00019998,2]
[344622867,1733628640541,-276.38084031,0.00019998,2]
[344622868,1733628640550,-500.0,0.00019998,2]
[344622869,1733628640559,-500.0,0.00019998,2]
[344622870,1733628640569,-511.89188867,0.00019998,2]
[344622871,1733628640578,-3815.53,0.00019998,2]
[344622872,1733628640587,-434.98950491,0.00019998,2]
[344622873,1733628640601,-505.34969294,0.00019998,2]
[344622874,1733628640610,-545.98394318,0.00019998,2]
[344622875,1733628640622,-518.22686745,0.00019998,2]
[344622876,1733628640632,-500.0,0.00019998,2]
[344622877,1733628640643,-523.14694986,0.00019998,2]
[344622878,1733628640652,-569.02,0.00019998,2]
[344622879,1733628640663,-569.02,0.00019998,2]
[344622880,1733628640675,-7307.73,0.00019998,2]
[344622881,1733628640686,-7307.73,0.00019998,2]
[344622882,1733628640695,-184.316,0.00019999,2]
[344622883,1733628640705,-500.0,0.00019999,2]
[344622884,1733628640714,-500.0,0.00019999,2]
[344622885,1733628640723,-500.0,0.00019999,2]
[344622886,1733628640733,-500.0,0.00019999,2]
[344622887,1733628640742,-508.72036215,0.00019999,2]
[344622888,1733628640751,-500.0,0.00019999,2]
[344622889,1733628640761,-500.0,0.00019999,2]
[344622890,1733628640770,-500.0,0.00019999,2]
[344622891,1733628640780,-500.0,0.00019999,2]
[344622892,1733628640788,-500.0,0.00019999,2]
[344622893,1733628640797,-500.0,0.00019999,2]
[344622894,1733628640806,-500.64253473,0.00019999,2]
[344622895,1733628640815,-500.0,0.00019999,2]
[344622896,1733628640825,-500.0,0.00019999,2]
[344622897,1733628640834,-500.0,0.00019999,2]
[344622898,1733628640843,-500.0,0.00019999,2]
[344622899,1733628640853,-181.54449573,0.00019999,2]
[344622900,1733628640862,-1075.02639277,0.00019999,5]
[344622901,1733628640876,-2764.977,0.00019999,2]
[344622902,1733628640888,-500.0,0.00019999,2]
[344622903,1733628640898,-500.0,0.00019999,2]
[344622904,1733628640907,-500.0,0.00019999,2]
[344622905,1733628640916,-500.0,0.00019999,2]
[344622906,1733628640925,-500.0,0.00019999,2]
[344622907,1733628640935,-500.0,0.00019999,2]
[344622908,1733628640944,-500.0,0.00019999,2]
[344622909,1733628640953,-500.0,0.00019999,2]
[344622910,1733628640963,-500.0,0.00019999,2]
[344622911,1733628640972,-500.0,0.00019999,2]
[344622912,1733628640982,-500.0,0.00019999,2]
[344622913,1733628640992,-500.0,0.00019999,2]
[344622914,1733628641002,-500.0,0.00019999,2]
[344622915,1733628641011,-484.43814268,0.00019999,2]
[344622916,1733628641021,-500.0,0.00019999,2]
[344622917,1733628641031,-500.0,0.00019999,2]
[344622918,1733628641041,-500.0,0.00019999,2]
[344622919,1733628641051,-500.0,0.00019999,2]
[344622920,1733628641062,-500.0,0.00019999,2]
[344622921,1733628641071,-500.0,0.00019999,2]
[344622922,1733628641080,-500.0,0.00019999,2]
[344622923,1733628641090,-500.0,0.00019999,2]
[344622924,1733628641100,-500.0,0.00019999,2]
[344622925,1733628641109,-500.0,0.00019999,2]
[344622926,1733628641119,-500.0,0.00019999,2]
[344622927,1733628641128,-500.0,0.00019999,2]
[344622928,1733628641137,-500.0,0.00019999,2]
[344622929,1733628641147,-500.0,0.00019999,2]
[344622930,1733628641156,-224.58662423,0.00019999,2]
[344622931,1733628641165,-503.88984951,0.00019999,2]
[344622932,1733628641175,-500.0,0.00019999,2]
[344622933,1733628641184,-500.0,0.00019999,2]
[344622934,1733628641194,-500.0,0.00019999,2]
[344622935,1733628641203,-500.0,0.00019999,2]
[344622936,1733628641213,-500.0,0.00019999,2]
[344622937,1733628641222,-500.0,0.00019999,2]
[344622938,1733628641231,-500.0,0.00019999,2]
[344622939,1733628641240,-500.0,0.00019999,2]
[344622940,1733628641250,-620.73572848,0.00019999,2]
[344622941,1733628641259,-510.11938541,0.00019999,2]
[344622942,1733628641268,-511.9109902,0.00019999,2]
[344622943,1733628641278,-508.50910945,0.00019999,2]
[344622944,1733628641286,-511.01891357,0.00019999,2]
[344622945,1733628641295,-500.0,0.00019999,2]
[344622946,1733628641305,-500.0,0.00019999,2]
[344622947,1733628641314,-500.0,0.00019999,2]
[344622948,1733628641323,-500.0,0.00019999,2]
[344622949,1733628641332,-500.0,0.00019999,2]
[344622950,1733628641341,-500.0,0.00019999,2]
[344622951,1733628641351,-500.0,0.00019999,2]
[344622952,1733628641360,-500.0,0.00019999,2]
[344622953,1733628641375,-512.24,0.00019999,2]
[344622954,1733628641387,-503.70162923,0.00019999,2]
[344622955,1733628641396,-500.0,0.00019999,2]
[344622956,1733628641405,-500.0,0.00019999,2]
[344622957,1733628641415,-500.0,0.00019999,2]
[344622958,1733628641424,-500.0,0.00019999,2]
[344622959,1733628641433,-496.56259015,0.00019999,2]
[344622960,1733628641443,-261.84,0.00019999,2]
[344622961,1733628641451,-153.30339345,0.00019999,2]
[344622962,1733628641461,-500.0,0.00019999,2]
[344622963,1733628641470,-500.0,0.00019999,2]
[344622964,1733628641479,-500.0,0.00019999,2]
[344622965,1733628641489,-500.0,0.00019999,2]
[344622966,1733628641498,-500.0,0.00019999,2]
[344622967,1733628641507,-553.67554098,0.00019999,2]
[344622968,1733628641517,-500.0,0.00019999,2]
[344622969,1733628641526,-500.0,0.00019999,2]
[344622970,1733628641535,-500.0,0.00019999,2]
[344622971,1733628641544,-500.0,0.00019999,2]
[344622972,1733628641553,-500.0,0.00019999,2]
[344622973,1733628641562,-361.00603628,0.00019999,2]
[344622974,1733628641571,-906.82,0.00019999,2]
[344622975,1733628641581,-906.82,0.00019999,2]
[344622976,1733628641592,-906.82,0.00019999,2]
[344622977,1733628641601,-906.82,0.00019999,2]
[344622978,1733628641610,-906.82,0.00019999,2]
[344622979,1733628641621,-906.82,0.00019999,2]
[344622980,1733628641631,-906.82,0.00019999,2]
[344622981,1733628641640,-906.82,0.00019999,2]
[344622982,1733628641649,-906.82,0.00019999,2]
[344622983,1733628641658,-906.82,0.00019999,2]
[344622984,1733628641667,-906.82,0.00019999,2]
[344622985,1733628641677,-906.82,0.00019999,2]
[344622986,1733628641686,-906.82,0.00019999,2]
[344622987,1733628641695,-906.82,0.00019999,2]
[344622988,1733628641704,-906.82,0.00019999,2]
[344622989,1733628641713,-906.82,0.00019999,2]
[344622990,1733628641722,-906.82,0.00019999,2]
[344622991,1733628641731,-906.82,0.00019999,2]
[344622992,1733628641740,-906.82,0.00019999,2]
[344622993,1733628641749,-906.82,0.00019999,2]
[344622994,1733628641758,-906.82,0.00019999,2]
[344622995,1733628641767,-906.82,0.00019999,2]
[344622996,1733628641777,-906.82,0.00019999,2]
[344622997,1733628641786,-906.88789454,0.00019999,2]
[344622998,1733628641795,-500.0,0.00019999,2]
[344622999,1733628641804,-500.0,0.00019999,2]
[344623000,1733628641813,-500.0,0.00019999,2]
[344623001,1733628641822,-500.0,0.00019999,2]
[344623002,1733628641831,-500.0,0.00019999,2]
[344623003,1733628641840,-500.0,0.00019999,2]
[344623004,1733628641849,-500.0,0.00019999,2]
[344623005,1733628641859,-190.92,0.00019999,2]
[344623006,1733628641870,-500.0,0.00019999,2]
[344623007,1733628641879,-500.0,0.00019999,2]
[344623008,1733628641888,-500.0,0.00019999,2]
[344623009,1733628641897,-221.9957107,0.00019999,2]
[344623010,1733628641907,-501.18807486,0.00019999,2]
[344623011,1733628641916,-498.7950171,0.00019999,2]
[344623012,1733628641925,-1075.02639277,0.00019999,5]
[344623013,1733628641935,-500.0,0.00019999,2]
[344623014,1733628641944,-386.19607287,0.00019999,2]
[344623015,1733628641953,-500.0,0.00019999,2]
[344623016,1733628641963,-500.0,0.00019999,2]
[344623017,1733628641972,-500.0,0.00019999,2]
[344623018,1733628641981,-500.0,0.00019999,2]
[344623019,1733628641990,-500.0,0.00019999,2]
[344623020,1733628641999,-500.0,0.00019999,2]
[344623021,1733628642008,-500.0,0.00019999,2]
[344623022,1733628642018,-500.0,0.00019999,2]
[344623023,1733628642026,-500.0,0.00019999,2]
[344623024,1733628642035,-500.0,0.00019999,2]
[344623025,1733628642044,-500.0,0.00019999,2]
[344623026,1733628642054,-303.02,0.00019999,2]
[344623027,1733628642065,-500.0,0.00019999,2]
[344623028,1733628642074,-500.0,0.00019999,2]
[344623029,1733628642083,-500.0,0.00019999,2]
[344623030,1733628642092,-500.0,0.00019999,2]
[344623031,1733628642103,-500.0,0.00019999,2]
[344623032,1733628642111,-500.0,0.00019999,2]
[344623033,1733628642123,-500.0,0.00019999,2]
[344623034,1733628642133,-500.0,0.00019999,2]
[344623035,1733628642141,-500.0,0.00019999,2]
[344623036,1733628642150,-424.50201816,0.00019999,2]
[344623037,1733628642159,-500.0,0.00019999,2]
[344623038,1733628642168,-287.29672786,0.00019999,2]
[344623039,1733628642177,-50065.58500033,0.00019999,2]
[344623040,1733628642186,-500.0,0.00019999,2]
[344623041,1733628642196,-500.0,0.00019999,2]
[344623042,1733628642206,-500.0,0.00019999,2]
[344623043,1733628642214,-500.0,0.00019999,2]
[344623044,1733628642224,-500.0,0.00019999,2]
[344623045,1733628642233,-500.0,0.00019999,2]
[344623046,1733628642242,-500.0,0.00019999,2]
[344623047,1733628642251,-459.62462627,0.00019999,2]
[344623048,1733628642260,-500.0,0.00019999,2]
[344623049,1733628642269,-525.31721539,0.00019999,2]
[344623050,1733628642278,-3133.88,0.00019999,2]
[344623051,1733628642287,-3133.88,0.00019999,2]
[344623052,1733628642296,-3133.88,0.00019999,2]
[344623053,1733628642306,-3133.88,0.00019999,2]
[344623054,1733628642315,-3133.88,0.00019999,2]
[344623055,1733628642324,-3133.88,0.00019999,2]
[344623056,1733628642333,-3133.88,0.00019999,2]
[344623057,1733628642342,-3133.88,0.00019999,2]
[344623058,1733628642351,-3133.88,0.00019999,2]
[344623059,1733628642363,-3133.88,0.00019999,2]
[344623060,1733628642375,-3133.88,0.00019999,2]
[344623061,1733628642384,-3133.88,0.00019999,2]
[344623062,1733628642394,-3133.88,0.00019999,2]
[344623063,1733628642403,-500.0,0.00019999,2]
[344623064,1733628642412,-3133.88,0.00019999,2]
[344623065,1733628642421,-500.0,0.00019999,2]
[344623066,1733628642431,-3133.88,0.00019999,2]
[344623067,1733628642440,-500.0,0.00019999,2]
[344623068,1733628642450,-3133.88,0.00019999,2]
[344623069,1733628642459,-500.0,0.00019999,2]
[344623070,1733628642469,-3133.88,0.00019999,2]
[344623071,1733628642479,-500.0,0.00019999,2]
[344623072,1733628642488,-3133.92852121,0.00019999,2]
[344623073,1733628642498,-500.0,0.00019999,2]
[344623074,1733628642507,-500.0,0.00019999,2]
[344623075,1733628642517,-515.89138007,0.00019999,2]
[344623076,1733628642526,-500.0,0.00019999,2]
[344623077,1733628642535,-500.0,0.00019999,2]
[344623078,1733628642545,-351.644404,0.00019999,2]
[344623079,1733628642554,-500.0,0.00019999,2]
[344623080,1733628642563,-500.0,0.00019999,2]
[344623081,1733628642573,-500.0,0.00019999,2]
[344623082,1733628642583,-500.0,0.00019999,2]
[344623083,1733628642595,-500.0,0.00019999,2]
[344623084,1733628642605,-500.0,0.00019999,2]
[344623085,1733628642614,-318.89656199,0.00019999,2]